Cogmind - Beta 13 @@@ ROGUE MODE // 2024.04.23 @ 10:35:57 Player: Zaros426 Result: Destroyed by AG-25900 with Assembled Focal Cannon Performance ------------- Evolutions (1) 500 Regions Visited (6) 1200 Robots Destroyed (101) 505 Value Destroyed (1865) 1865 Prototype IDs (15) 300 Alien Tech Used (0) 0 Bonus (1711) 1711 TOTAL SCORE: 6081 Bonus ------- Follower Combat Kills 111 Met Imprinter 300 Was Imprinted 300 Destroyed Z-Imprinter 1000 Cogmind --------- Core Integrity 0/400 Matter 187/300 Energy 77/100 System Corruption 0% Temperature Cool (6) Movement Hovering (60) Location -7/Deep Caves Parts ------- > --- POWER (1) -------- (None) > --- PROPULSION (3) --- Zionite Glidesys I > --- UTILITY (3) ------ (None) > --- WEAPON (2) ------- (None) > --- INVENTORY (5) ---- Hacking Suite Mobile Refinery Mk. CCLXVII Bomb Factory No. 2 Zionite Phaser-S Peak State ------------ > --- POWER ------------ Cooled Ion Engine > --- PROPULSION ------- Light Treads Light Treads Advanced Treads > --- UTILITY ---------- Huge Storage Unit Zionite Light Carapace Zionite Light Carapace > --- WEAPON ----------- Zionite Phaser-S Rocket Launcher > --- INVENTORY -------- Cooled Ion Engine Cooled Ion Engine Cooled Ion Engine Armored Wheel Zionite Glidesys I Zionite Glidesys I Experimental Heat Sink Large Storage Unit Zionite Biocell Structural Scanner Improved Terrain Scanner Advanced Terrain Scan Processor Seismic Detector Weapon Cycler Transmission Jammer Hacking Suite System Shield Mobile Refinery Mk. CCLXVII Hacking Drone Bay Bomb Factory No. 2 Zionite Phaser-S Great Maul Great Maul [Rating: 40] Favorites ----------- Power Cooled Ion Engine Engine Cooled Ion Engine Reactor Zionite Light DM Reactor Propulsion Advanced Treads Treads Advanced Treads Leg Aluminum Leg Wheel Compact Wheel Hover Unit Zionite Glidesys I Utility Signal Interpreter Device Seismic Detector Storage Large Storage Unit Processor Signal Interpreter Protection Hardened Light Armor Plating Weapon Rocket Launcher Energy Gun EM Pulse Gun Ballistic Gun Assault Rifle Launcher Rocket Launcher Impact Weapon Heavy Hammer Special Melee Weapon Datajack Build | -11 -10 -10 -9 -9 -7 -7 ------- Run | Yrd Mat Min Mat Min Zio Dee Slots Evolved 2 | . . . 2 . . . Power . | . . . . . . . Propulsion 1 | . . . 1 . . . Utility 1 | . . . 1 . . . Weapon . | . . . . . . . Parts Attached 99 | 7 17 5 35 . 6 29 Power 13 | 1 1 2 5 . 1 3 Engine 12 | 1 1 2 5 . 1 2 Core . | . . . . . . . Reactor 1 | . . . . . . 1 Propulsion 31 | 2 5 2 11 . . 11 Treads 15 | . 2 . 8 . . 5 Leg 7 | 2 . 2 3 . . . Wheel 4 | . 3 . . . . 1 Hover 5 | . . . . . . 5 Flight . | . . . . . . . Utility 33 | 2 4 . 11 . 5 11 Device 13 | 1 1 . 4 . 3 4 Storage 7 | 1 2 . 2 . 1 1 Processor 1 | . 1 . . . . . Hackware . | . . . . . . . Protection 12 | . . . 5 . 1 6 Artifact . | . . . . . . . Weapon 22 | 2 7 1 8 . . 4 Energy Gun 3 | . . . 1 . . 2 Energy Cannon . | . . . . . . . Ballistic Gun 6 | 2 3 . 1 . . . Ballistic Cannon . | . . . . . . . Launcher 8 | . 4 . 3 . . 1 Special Weapon . | . . . . . . . Impact Weapon 4 | . . 1 2 . . 1 Slashing Weapon . | . . . . . . . Piercing Weapon . | . . . . . . . Special Melee Weapon 1 | . . . 1 . . . Unidentified Prototypes 13 | . . . 2 . 2 9 Parts Lost 15 | . . 1 4 . . 10 Power 2 | . . 1 . . . 1 Propulsion 6 | . . . 2 . . 4 Utility 2 | . . . . . . 2 Weapon 5 | . . . 2 . . 3 Highest Loss Streak 6 | . . 1 1 . . 6 To Critical Strikes . | . . . . . . . Average Slot Usage (%) 99 | . 99 97 98 100 100 99 Engine 11 | . 14 11 10 11 11 11 Treads 23 | . 1 . 27 33 33 31 Leg 4 | . 6 19 4 . . . Wheel 3 | . 19 8 . . . . Device 5 | . 11 . 5 . 5 3 Storage 11 | . 14 14 11 11 11 11 Processor 9 | . 2 14 11 11 11 6 Protection 5 | . . . 5 11 5 10 Energy Gun 1 | . . . 2 . . 2 Ballistic Gun 2 | . 16 3 . . . . Launcher 10 | . 10 14 7 11 11 11 Impact Weapon 9 | . . 10 10 11 11 8 Naked Turns . | . . . . . . . Heaviest Build 103 | 15 91 30 40 40 100 103 Greatest Support 66 | 20 40 32 66 66 66 66 Greatest Overweight (x) 4 | 1 4 1 . . 1 3 Average Overweight (x) . | . . . . . . 1 Largest Inventory Capacity 25 | 8 25 15 25 15 25 25 Average Capacity 18 | 7 16 15 15 15 23 24 Most Carried 25 | 3 15 15 15 15 20 25 Average Carried 16 | 2 11 14 14 15 18 23 Final Capacity 25 | 8 15 15 15 15 25 5 Final Carried 20 | 3 15 15 15 15 20 5 Class Distribution -------------------- 75% | Mutant 24% | Scavenger-Mutant Dominant Class ---------------- Mutant | -10/Materials Mutant | -10/Mines Scavenger-Mutant | -9/Materials Mutant | -9/Mines Mutant | -7/Zion Mutant | -7/Deep Caves Resources | -11 -10 -10 -9 -9 -7 -7 ----------- Run | Yrd Mat Min Mat Min Zio Dee Matter Collected 1644 | 336 203 276 411 22 58 338 Remotely . | . . . . . . . Salvage Created 2627 | 178 222 277 1430 209 . 311 Parts 154 | 16 31 21 66 4 . 16 Haulers Intercepted 4 | . 1 . 3 . . . Recyclers Shooed 2 | . . 1 1 . . . Parts Field Recycled . | . . . . . . . Retrieved Matter . | . . . . . . . Parts Self-Destructed 5 | . . . . . 5 . Prevented . | . . . . . . . Kills | -11 -10 -10 -9 -9 -7 -7 ------- Run | Yrd Mat Min Mat Min Zio Dee Combat Hostiles Destroyed 64 | . 9 11 31 4 . 9 Melee 8 | . . 2 6 . . . Guns 13 | . 1 . 12 . . . AOE 29 | . 8 9 1 2 . 9 Classes Destroyed 12 | 3 4 1 3 . . 1 Worker 11 | 1 4 2 4 . . . Builder 3 | . 2 . 1 . . . Tunneler 7 | 4 1 2 . . . . Hauler 4 | . 1 . 3 . . . Recycler 5 | 1 . 1 1 2 . . Operator 1 | . . . 1 . . . Watcher 6 | . 3 . 3 . . . Swarmer 34 | . 9 9 13 3 . . Grunt 11 | . . 2 8 1 . . Duelist 1 | . . . 1 . . . Sentry 9 | . . . 9 . . . Z-Light 8 | . . . . . . 8 Best Kill Streak 8 | 4 4 3 8 3 . 5 Combat Bots Only 7 | . 3 3 7 3 . 5 Max Kills in Single Turn 3 | 2 2 3 1 2 . 2 Gunslinging . | . . . . . . . Exploded 3 | . 2 3 1 2 . 2 Melee 1 | . . 1 1 . . . Uniques/NPCs Destroyed 1 | . . . . . . 1 Z-Imprinter (-7/Deep Caves) Combat | -11 -10 -10 -9 -9 -7 -7 -------- Run | Yrd Mat Min Mat Min Zio Dee Hostile Shots Fired 273 | . 22 18 153 33 . 47 Missed 77 | . 11 4 38 12 . 12 Damage Taken 3254 | . 169 174 1427 260 . 1224 Core 502 | . 48 36 286 28 . 104 Absorbed by Shields . | . . . . . . . Redirected to Shielding 30 | . . . . . . 30 Regen/Repaired (Parts) 104 | . 9 . 95 . . . Core Remaining (%) 83 | 100 . 66 . . . . Volleys Fired 144 | 11 49 5 58 2 . 19 Largest 2 | 2 2 1 1 1 . 1 Hottest 40 | 40 40 30 40 33 . 33 Shots Fired 161 | 22 55 5 58 2 . 19 Gun 122 | 22 42 . 58 . . . Cannon . | . . . . . . . Launcher 39 | . 13 5 . 2 . 19 Special . | . . . . . . . Kinetic 77 | 22 42 . 13 . . . Thermal . | . . . . . . . Explosive 39 | . 13 5 . 2 . 19 Electromagnetic 45 | . . . 45 . . . Robot Hit Streak 11 | 10 7 2 11 1 . 2 Robot Miss Streak 6 | 2 6 1 3 . . 1 Penetration Max . | . . . . . . . Secondary Targets . | . . . . . . . Shots Hit Robots 176 | 14 23 15 106 12 . 6 Core Hits 101 | 6 25 12 26 2 . 30 Critical Kills 4 | 1 . 2 1 . . . Critical Parts Destroyed 16 | . . 2 11 3 . . Critical Strikes 21 | 1 . 4 13 3 . . Destroy 1 | 1 . . . . . . Smash 20 | . . 4 13 3 . . Melee Attacks 221 | . . 22 133 15 51 . Impact 216 | . . 22 128 15 51 . Slashing . | . . . . . . . Piercing . | . . . . . . . Sneak Attacks 30 | . . 6 19 5 . . Combat Hostiles . | . . . . . . . Follow-up Attacks . | . . . . . . . Damage Inflicted 6933 | 209 1094 1001 2859 596 . 1174 Guns 976 | 209 247 . 520 . . . Cannons . | . . . . . . . Explosions 2670 | . 843 475 48 130 . 1174 Melee 3283 | . . 526 2291 466 . . Ramming 4 | . 4 . . . . . Kinetic 593 | 209 247 . 137 . . . Thermal 48 | . . . 48 . . . Explosive 2591 | . 812 475 . 130 . 1174 Electromagnetic 414 | . 31 . 383 . . . Impact 3283 | . . 526 2291 466 . . Slashing . | . . . . . . . Piercing . | . . . . . . . Highest Corruption . | . . . . . . . Average Corruption . | . . . . . . . Corruption Purged . | . . . . . . . Corruption Blocked . | . . . . . . . Overload Shots . | . . . . . . . Overflow Damage 1078 | . 15 199 629 235 . . Projectiles 54 | . . . 54 . . . Explosions 41 | . 15 18 . 8 . . Melee 983 | . . 181 575 227 . . Knockbacks 10 | . . 2 7 1 . . Impact 9 | . . 2 6 1 . . Kinetic . | . . . . . . . Secondary 1 | . . . 1 . . . Self-Inflicted Damage 111 | . 88 23 . . . . Shots 4 | . 3 1 . . . . Rammed . | . . . . . . . Targets Rammed 2 | . 2 . . . . . Kicked 2 | . 2 . . . . . Crushed . | . . . . . . . Highest Temperature 54 | . . . 15 . . 54 Average Temperature 17 | . . . 3 . . 31 Received Heat Transfer 870 | . . 60 459 72 . 279 Siege Activations . | . . . . . . . Robots Corrupted 2 | . . . 2 . . . Combat Hostiles . | . . . . . . . Parts Fried 31 | . . 3 24 4 . . Impact Corruptions 53 | . . 8 34 11 . . Robots Melted . | . . . . . . . Combat Hostiles . | . . . . . . . Parts Melted . | . . . . . . . Heat Transferred 50 | . . . 50 . . . Parts Sabotaged . | . . . . . . . Parts Stolen . | . . . . . . . Parts Stripped . | . . . . . . . Power Chain Reactions 1 | . . . 1 . . . Alert | -11 -10 -10 -9 -9 -7 -7 ------- Run | Yrd Mat Min Mat Min Zio Dee Peak Influence 347 | 30 262 281 347 138 . . Initial 83 | . 19 36 48 83 . . Average 123 | 10 146 115 126 113 . . Maximum Alert Level 1 | . 1 1 1 . . . Low Security (%) 78 | 100 83 91 63 100 . . Level 1 21 | . 16 8 36 . . . Level 2 . | . . . . . . . Level 3 . | . . . . . . . Level 4 . | . . . . . . . Level 5 . | . . . . . . . High Security . | . . . . . . . Max Security . | . . . . . . . Squads Dispatched 1 | . . . 1 . . . Investigation 1 | . . . 1 . . . Extermination . | . . . . . . . Reinforcement . | . . . . . . . Assault . | . . . . . . . Garrison . | . . . . . . . Intercept . | . . . . . . . Searches Triggered . | . . . . . . . Construction Impeded . | . . . . . . . Haulers Reinforced . | . . . . . . . Active Scanning Responses . | . . . . . . . Cargo Convoy Interrupts . | . . . . . . . Stealth | -11 -10 -10 -9 -9 -7 -7 --------- Run | Yrd Mat Min Mat Min Zio Dee Distress Signals 2 | . . . 2 . . . Communications Jammed . | . . . . . . . Distress Signals . | . . . . . . . Times Spotted 99 | . 22 9 46 7 1 14 Peak Tracking Total 7 | . 4 3 7 2 1 5 Tactical Retreats 5 | . . . 2 3 . . Traps | -11 -10 -10 -9 -9 -7 -7 ------- Run | Yrd Mat Min Mat Min Zio Dee Traps Triggered 2 | . 2 . . . . . Indirectly . | . . . . . . . Trap Hack Attempts . | . . . . . . . Triggered . | . . . . . . . Disarmed . | . . . . . . . Reprogrammed . | . . . . . . . Reused . | . . . . . . . Traps Extracted . | . . . . . . . Installed . | . . . . . . . Triggered . | . . . . . . . Machines | -11 -10 -10 -9 -9 -7 -7 ---------- Run | Yrd Mat Min Mat Min Zio Dee Machines Disabled 9 | . 3 2 1 . . 3 Max in Single Turn 2 | . 1 2 1 . . . Machines Repaired . | . . . . . . . Machines Dismantled . | . . . . . . . Machines Sabotaged . | . . . . . . . Overloaded Fab Kills . | . . . . . . . Hacking | -11 -10 -10 -9 -9 -7 -7 --------- Run | Yrd Mat Min Mat Min Zio Dee Machines Accessed 24 | . 9 . 15 . . . Terminals 20 | . 8 . 12 . . . Fabricators . | . . . . . . . Repair Stations 2 | . 1 . 1 . . . Recycling Units . | . . . . . . . Scanalyzers 2 | . . . 2 . . . Garrison Access . | . . . . . . . Total Hacks 75 | . 24 . 51 . . . Successful 50 | . 16 . 34 . . . Failed 24 | . 8 . 16 . . . Catastrophic 5 | . 2 . 3 . . . Database Lockouts 1 | . . . 1 . . . Manual 40 | . 13 . 24 . 3 . Terminals 65 | . 22 . 43 . . . Fabricators . | . . . . . . . Repair Stations 5 | . 2 . 3 . . . Recycling Units . | . . . . . . . Scanalyzers 5 | . . . 5 . . . Garrison Access . | . . . . . . . Terminal Hacks 31 | . 8 . 23 . . . Record 3 | . . . 3 . . . Robot Analysis 7 | . 4 . 3 . . . Prototype ID Bank 1 | . 1 . . . . . Alert Level 4 | . . . 4 . . . Unreport Threat 4 | . . . 4 . . . Locate Traps 2 | . . . 2 . . . Dispatch Records 1 | . . . 1 . . . Maintenance Status 1 | . . . 1 . . . Assault Status 1 | . . . 1 . . . Recall Investigation 1 | . . . 1 . . . Recall Reinforcements 1 | . . . 1 . . . Zone Layout 5 | . 3 . 2 . . . Fabricator Hacks . | . . . . . . . Repair Station Hacks 4 | . 2 . 2 . . . Scan Component 2 | . 1 . 1 . . . Repair 2 | . 1 . 1 . . . Recycling Unit Hacks . | . . . . . . . Scanalyzer 3 | . . . 3 . . . Insert Component 2 | . . . 2 . . . Analyze 1 | . . . 1 . . . Garrison Access Hacks . | . . . . . . . Unauthorized Hacks 12 | . 6 . 6 . . . Terminals 12 | . 6 . 6 . . . Track 3 | . 1 . 2 . . . Assimilate 1 | . 1 . . . . . Botnet 8 | . 4 . 4 . . . Fabricators . | . . . . . . . Repair Stations . | . . . . . . . Recycling Units . | . . . . . . . Scanalyzers . | . . . . . . . Garrison Access . | . . . . . . . Data Cores Recovered 1 | . . . 1 . . . Used 1 | . . . 1 . . . Hacking Detections 22 | . 9 . 13 . . . Full Trace Events . | . . . . . . . Feedback Events . | . . . . . . . Feedback Blocked . | . . . . . . . Robot Schematics Acquired 4 | . . . . . 4 . Robots Built . | . . . . . . . Authchips . | . . . . . . . Time . | . . . . . . . Total Robot Build Rating . | . . . . . . . Part Schematics Acquired 16 | . . . 1 . 15 . Parts Built . | . . . . . . . Authchips . | . . . . . . . Time . | . . . . . . . Total Part Build Rating . | . . . . . . . Parts Repaired 2 | . 1 . 1 . . . Time 77 | . 26 . 51 . . . Parts Recycled . | . . . . . . . Recycled Matter . | . . . . . . . Retrieved Matter . | . . . . . . . Retrieved Components . | . . . . . . . Parts Scanalyzed 2 | . . . 2 . . . Part Schematics Acquired 1 | . . . 1 . . . Parts Damaged . | . . . . . . . Bothacking | -11 -10 -10 -9 -9 -7 -7 ------------ Run | Yrd Mat Min Mat Min Zio Dee Used RIF Installer . | . . . . . . . Robots Hacked 1 | . . . 1 . . . Non-combat 1 | . . . 1 . . . Combat . | . . . . . . . Robot Hacks Applied 2 | . . . 2 . . . parse_system 1 | . . . 1 . . . no_distress 1 | . . . 1 . . . Relay Couplers Released . | . . . . . . . Fabnet Peak Effective % . | . . . . . . . Robots Rewired . | . . . . . . . Allies Hacked . | . . . . . . . Hacks Repelled . | . . . . . . . Allies | -11 -10 -10 -9 -9 -7 -7 -------- Run | Yrd Mat Min Mat Min Zio Dee Total Allies 11 | . . . . 3 7 1 Largest Group 7 | . . . . 3 7 4 Highest-Rated Group 219 | . . . . 40 219 187 Highest-Rated Ally 119 | . . . . 16 38 119 Total Orders . | . . . . . . . Ally Attacks 60 | . . . . 27 . 33 Total Damage 2833 | . . . . 233 . 2600 Kills 15 | . . . . 3 . 12 Allies Corrupted . | . . . . . . . Allies Melted . | . . . . . . . Intel | -11 -10 -10 -9 -9 -7 -7 ------- Run | Yrd Mat Min Mat Min Zio Dee Robot Analysis Total 6 | . 3 . 3 . . . Derelict Logs Recovered 4 | . . 2 . 1 1 . Drone Launches . | . . . . . . . Drone Recoveries . | . . . . . . . Exploration | -11 -10 -10 -9 -9 -7 -7 ------------- Run | Yrd Mat Min Mat Min Zio Dee Turns Passed 10864 | 184 1483 1083 2820 791 2754 1749 Spaces Moved 5801 | 112 1140 646 1441 480 1277 705 Core 2 | 2 . . . . . . Treads 3781 | . 26 . 1334 480 1277 664 Legs 832 | 110 234 381 107 . . . Wheels 1145 | . 880 265 . . . . Hover 41 | . . . . . . 41 Flight . | . . . . . . . Fastest Speed 50 | 50 100 100 120 145 145 56 Average Speed 165 | 120 116 153 152 145 203 233 Slowest Speed 400 | 190 400 190 160 145 225 312 Overloaded Moves . | . . . . . . . Propulsion Burnouts . | . . . . . . . Robots Hopped . | . . . . . . . Cave-ins Triggered . | . . . . . . . Exploration Rate (%) 76 | 4 99 99 99 74 92 70 Regions Visited 6 Branch Regions 4 Pre-discovered Areas 2 | . . 1 . . 1 . Known Exits Taken 5 | . 1 1 1 1 1 . Unknown Exits Taken 1 | 1 . . . . . . Scrap Searched 4 | . . 1 . 1 2 . Spaces Dug 24 | . 10 . 11 . 3 . Terrain Destroyed 209 | . 58 45 19 21 3 63 Melee 14 | . . . 11 . 3 . Projectile . | . . . . . . . AOE 195 | . 58 45 8 21 . 63 Terrain Rammed . | . . . . . . . Walls Destroyed . | . . . . . . . Machines Disabled . | . . . . . . . Actions | -11 -10 -10 -9 -9 -7 -7 --------- Run | Yrd Mat Min Mat Min Zio Dee Total 6524 | 135 1228 697 1781 547 1344 792 Wait 150 | 3 6 13 70 51 3 4 Move 5795 | 111 1139 645 1440 479 1276 705 Hop . | . . . . . . . Pick Up 60 | 3 13 3 20 . 6 15 Fast Attach 27 | 7 6 2 6 . . 6 Attach 14 | . . . 7 . . 7 Detach 5 | . . . . . . 5 Swap 58 | . 11 3 22 . 6 16 Drop 48 | . 2 4 25 . 2 15 Fire 144 | 11 49 5 58 2 . 19 Melee 221 | . . 22 133 15 51 . Ram . | . . . . . . . Kick 2 | . 2 . . . . . Crush . | . . . . . . . Escape Stasis . | . . . . . . . Rewire . | . . . . . . . Trap . | . . . . . . . Miscellaneous . | . . . . . . . Route ------- -11/Scrapyard -10/Materials (discovered 5 exits: *Mat x3 / *Min / *Sub) -10/Mines (discovered 4 exits: *Mat x2 / *Exi / *Sub) -9/Materials (discovered 5 exits: *Mat x3 / *Min x2) -9/Mines (discovered 3 exits: *Mat x2 / *Zio) -7/Zion (discovered 2 exits: *Dee / *Pro) -7/Deep Caves History --------- Turn | Location | Event 16 | -11/Scrapyard | Discovered new exit (range 15) 185 | -11/Scrapyard | Entered Materials 300 | -10/Materials | Build established: Mutant 382 | -10/Materials | Discovered new exit (range 14) 459 | -10/Materials | Discovered new exit (range 15) 688 | -10/Materials | Repaired Seismic Detector? 763 | -10/Materials | Discovered new exit (range 9) 899 | -10/Materials | Discovered new exit (range 16) 1403 | -10/Materials | Discovered new exit (range 9) 1426 | -10/Materials | Identified exit to Subcaves 1452 | -10/Materials | Identified exit to Materials 1508 | -10/Materials | Identified exit to Mines 1668 | -10/Materials | Entered Mines 1723 | -10/Mines | Discovered exit to Materials (range 14) 2421 | -10/Mines | Learned Materials trap positions 2467 | -10/Mines | Discovered exit to Subcaves (range 3) 2530 | -10/Mines | Discovered exit to Materials (range 11) 2570 | -10/Mines | Learned Materials emergency access door positions 2576 | -10/Mines | Deemed a non-threat by the Exiles lab entrance 2576 | -10/Mines | Discovered new exit (range 5) 2583 | -10/Mines | Identified exit to Exiles 2674 | -10/Mines | Learned location of Storage (-8) 2751 | -10/Mines | Entered Materials 2751 | -9/Materials | Evolved 2 slots: Propulsion x1, Utility x1 2752 | -9/Materials | Loaded intel: 17 trap records 2940 | -9/Materials | Destroyed 7 combat bots 3043 | -9/Materials | Build established: Scavenger-Mutant 3211 | -9/Materials | Discovered new exit (range 10) 3239 | -9/Materials | Identified exit to Materials 3932 | -9/Materials | Discovered new exit (range 6) 3938 | -9/Materials | Identified exit to Mines 4291 | -9/Materials | Repaired Cld. Ion Engine? 4297 | -9/Materials | Central database locked down 4397 | -9/Materials | Discovered exit to Mines (range 12) 4418 | -9/Materials | Core integrity fell below 50% 4499 | -9/Materials | Discovered exit to Materials (range 8) 5048 | -9/Materials | Build established: Mutant 5315 | -9/Materials | Discovered exit to Materials (range 8) 5571 | -9/Materials | Entered Mines 5622 | -9/Mines | Discovered exit to Materials (range 10) 5644 | -9/Mines | Learned Materials terminal intel 5696 | -9/Mines | Received a Rocket Launcher from a helpful Derelict 5760 | -9/Mines | Discovered exit to Materials (range 10) 6038 | -9/Mines | Assisted by bots powering up and referring to "LRC-V3" 6067 | -9/Mines | A Derelict revealed a hidden shortcut to a safe place 6071 | -9/Mines | Identified exit to Zion 6291 | -9/Mines | Assembled infested the area 6296 | -9/Mines | Assisted by a Guerilla fighting off Assembled 6362 | -9/Mines | Entered Zion 6390 | -7/Zion | Lost 4 allies 6486 | -7/Zion | Discovered new exit (range 12) 6510 | -7/Zion | Identified exit to Proximity Caves 6549 | -7/Zion | Found Prototype Device 6560 | -7/Zion | Identified Mobile Refinery Mk. CCLXVII 7021 | -7/Zion | Identified exit to Deep Caves 7266 | -7/Zion | Given the Hacking Drone Bay 7266 | -7/Zion | Found Prototype Device 7678 | -7/Zion | Learned Factory repair station intel 7919 | -7/Zion | Found Prototype Device 7931 | -7/Zion | Identified Hacking Drone Bay 8054 | -7/Zion | Learned location of Quarantine (-2) 8105 | -7/Zion | Gained Derelict followers 8668 | -7/Zion | Imprinted 8670 | -7/Zion | Declared Zion's savior 9091 | -7/Zion | Saw the warning signs outside the Deep Caves entrance 9116 | -7/Zion | Entered Deep Caves 9116 | -7/Deep Caves | Accompanied by 7 allies 9119 | -7/Deep Caves | Met 5H-AD0 9370 | -7/Deep Caves | Z-Facility disabled 9408 | -7/Deep Caves | Attacked by Z-Imprinter 9423 | -7/Deep Caves | Destroyed Z-Imprinter 9452 | -7/Deep Caves | Found Prototype Protection 9507 | -7/Deep Caves | Identified Zio. Weapon Casing 9834 | -7/Deep Caves | Core integrity fell below 20% 9866 | -7/Deep Caves | Lost 3 parts (2n1w) 10126 | -7/Deep Caves | Build established: Scavenger-Mutant 10153 | -7/Deep Caves | Identified Bomb Factory No. 2 10851 | -7/Deep Caves | Spotted AG-25900 10865 | -7/Deep Caves | Destroyed by AG-25900 with Assembled Focal Cannon Last Messages --------------- 10553_ Dropped Hrd. Light Armor Plating. 10561_ Acquired Zio. Light Carapace. 10562_ Dropped EM Pulse Gun. 10572_ Acquired Zio. Phaser-S. 10587_ Dropped Weapon Cycler. 10595_ Acquired Prototype Energy Gun. 10596_ Identified Zio. Laser-S. 10852_ 7P-9LY(l) destroyed. 10852_ Zio. Light Carapace destroyed. 10853_ AG-25900: "DSI9AT1D G8OHIBQ29FWG 26R186 QD12WHW8W33 TDK1 81FTS" 10855_ Zio. Light Carapace destroyed. 10857_ Dropped Huge Storage Unit. 10861_ Dropped Lgt. Treads. 10862_ Rocket Launcher destroyed. 10862_ Cld. Ion Engine destroyed. 10862_ Acquired Zio. Glidesys I. 10863_ Dropped Lgt. Treads. 10865_ Zio. Laser-S destroyed. 10865_ Zio. Glidesys I destroyed. [Achievement: Tester] Map ----- +----------------------------------------------------+ | ?????????????????????????????????????????????????? | | ?????????????????????????????????????????????????? | | ?????????????????????????????????????????????????? | | ?????????????????????????????????????????????????? | | ?????????????????????????????????????????????????? | | ?????????????????????????????????????????????????? | | ?????????????????????????????????????????????????? | | ?????????????????????????????????????????????????? | | ?????????????????????????????????????????????????? | | ?????????????????? ????????????????????????###? | | ???????????????? [ ????????????????????????# # | | ????????????? [ ##????????????## ????? | | ??????????? * [ #??????????? ???? | | ?????????* [ #??????????? #????? | | ???????? #??????????? ##????? | | ???????? #??????????? ###????# | | ??????? = #???????????? ###### | | ??????? b #????????????# | | ?????? = #????????????# | | ?????? [ =/ ##??????????## | | ?????? = / #??????????# | | ????? =[ / #??????????# | | ????? !!! #??????????# #?# | | ???? = %**/! ############# ##### | | ???? = =!!=! | | ?????" [[ = *!![= @ | | ???? !!/= | | ????" #################### | | ????? #??????????????????# # | | ????? ##?????????????????# ## | | ?????? # # #??????????????????# ##? | | ?????? #### ## ## ##??????????????????# #?? | | ?????? #????# ?# ?###???????????????????## ##?? | | ??????? ??????#??# ????????????????????????####??? | | ??????????????????#??????????????????????????????? | | | | | | | | | | | | | | | | | | | | | | | | | | | | | | | +----------------------------------------------------+ Best States ------------- Heat Dissipation 28 Energy Generation 14 Energy Capacity 880 Matter Stores 300 Matter Capacity 300 Sight Range 16 Terrain Scan Density 10 Armor Coverage 800 Weapon Shielding 100 Evasion (%) 55 Recoil Reduction 3 Item Schematics ----------------- Seismic Detector | -9/Materials | Scanalyzed Xenon Bombardment Thruster | -7/Zion | Archive Enh. Optical Array | -7/Zion | Archive Mak. Hammer | -7/Zion | Archive Lgt. Fission Core | -7/Zion | Archive Mak. Leg | -7/Zion | Archive Mak. Cloaking Device | -7/Zion | Archive Imp. Salvage Targeting Computer | -7/Zion | Archive Adv. Drone Bay | -7/Zion | Archive Adv. Cooling System | -7/Zion | Archive Remote Datajack | -7/Zion | Archive Lgt. Angular Momentum Engine | -7/Zion | Archive Stasis Canceller | -7/Zion | Archive Microactuators | -7/Zion | Archive Dynamic Insulation System | -7/Zion | Archive Power Amplifier | -7/Zion | Archive Robot Schematics ------------------ S-27 Virus | -7/Zion | Archive A-02 Transporter | -7/Zion | Archive M-28 Smith | -7/Zion | Archive H-88 Terminator | -7/Zion | Archive Fabricated ------------ Nothing Alien Tech Used ----------------- None Achievements -------------- Adventurer Are We The Baddies? Quantum Hacking Signs Are For Wimps Tester root@ Challenges ------------ None Game ------ Seed AntimissileInsulatedBarrier Manual? 0 Play Time 01:25:50 Cumulative 66.2 hours Start 2024.04.23 @ 09:10:00 End 2024.04.23 @ 10:35:57 Sessions 1 Manual Loads 0 Difficulty Rogue Special Mode None Game No. 73 Rogue 73 Adventurer 0 Explorer 0 Win Type - Total 0 Types 0/0/0/0/0/0/0/0/0 Lore% 33 Gallery% 50 Achievement% 35 Wizard Run 0 Options --------- Layout 0 ASCII 0 Keyboard 0 Movement Mouse Keybinds 0 Fullscreen 2 Font 24/Smallcaps Map View 183x50 Zoom Use 0% Tactical HUD 1 Map Filters NONE Filters NONE Steam 0 RUN: 3e44be5c-e42f-4537-a791-1a1ad55a3dcc